{"text_format":"1","workbook":"xlsx","n_sheets":2,"sheets":["Pasiūlymas","Subtiekėjai ir priedai"],"not_rendered":{"charts":0,"images":0,"macros":1,"external_links":0,"defined_names":0,"comments":0,"pivot_tables":0},"unopened":[],"bounds":{"document_bytes":16777216,"sheet_cells":100000,"rows_first":2000,"rows_last":500,"rows_between":2000,"halvings":0,"cell_chars":16384,"cell_head_chars":4096},"cells_cut":0,"cells_raw":0,"read":"whole","date_system":"1900"}

{"sheet":"Pasiūlymas","index":0,"n_rows":490,"n_cols":8,"rows_kept":490,"cut":false,"hidden":false,"merged":[[27,0,27,5],[28,0,28,5],[24,0,24,5],[25,0,25,5],[26,0,26,5],[18,0,18,1],[18,2,18,5],[23,0,23,5],[19,0,19,1],[20,0,20,1],[19,2,19,5],[20,2,20,5],[22,0,22,5],[29,0,29,2],[29,3,29,5],[11,0,11,1],[11,2,11,5],[12,0,12,1],[12,2,12,5],[13,0,13,1],[13,2,13,5],[14,0,14,1],[14,2,14,5],[15,0,15,1],[15,2,15,5],[16,0,16,1],[16,2,16,5],[17,0,17,1],[17,2,17,5]]}
[]
["PIRKIMO SĄLYGŲ PRIEDAS \"PASIŪLYMŲ FORMA\""]
[]
["CHIRURGINIAI INSTRUMENTAI IR JŲ PRIEDAI"]
[]
["Kam:","VšĮ LSMU Kauno ligoninė"]
[]
["Data:","2022 06 27"]
["Nr.:",598828]
["Vieta:","Kaunas"]
[]
["Tiekėjo pavadinimas / Ūkio subjektų grupės nariai:",null,"UAB Salmeda"]
["Tiekėjo kodas (-ai):",null,123500866]
["Tiekėjo adresas (-ai):",null,"P. Baublio g. 41, LT-08431 Vilnius"]
["Tiekėjo PVM mokėtojo kodas(-ai):",null,"LT235008610"]
["Tiekėjo / Ūkio subjektų grupės atsakingo partnerio sąskaitos numeris, banko pavadinimas ir banko kodas (-ai):",null,"SEB bankas, a.s.  LT337044060001498542\nSwedbankas a.s. LT597300010002438156\n"]
["Asmens atsakingo už pasiūlymą vardas, pavardė:",null,"Kostas Čekanauskas"]
["Asmens atsakingo už pasiūlymą telefono numeris, el. pašto adresas:",null,"8 5 2729006, med@salmeda.lt"]
["Tiekėjo / Ūkio subjektų grupės, laimėjimo atveju, pasirašančio sutartį asmens vardas, pavardė, pareigos:",null,"direktorius Viktoras Šarpis"]
["Tiekėjo / Ūkio subjektų grupės, laimėjimo atveju, už sutarties vykdymą atsakingo asmens vardas, pavardė, telefono numeris, elektroninio pašto adresas:",null,"Kostas Čekanauskas, 8 5 2729006, med@salmeda.lt"]
["(1) Tiekėjo / Ūkio subjektų grupės narių, (2) ūkio subjektų, kurių pajėgumais remiamasi, ir (3) jei pašalinimo pagrindai taikomi visiems subtiekėjams - subtiekėjų, kolegialaus priežiūros organo (Stebėtojų tarybos) ir (ar) kolegialaus valdymo organo (Valdybos) narių sąrašas (jei sudaryta) ir (ar) asmuo, kuriam suteikti VPĮ 46 str. 2 d. 2 p. numatyti įgaliojimai",null,null,null,null,null,{"$f":"IF((SUMPRODUCT(--(C21=\"\"))>0), \"Privaloma užpildyti, kai taikomi pašalinimo pagrindai\", \"\")","v":"Privaloma užpildyti, kai taikomi pašalinimo pagrindai"}]
[]
["Tiekėjo patvirtinimai:"]
["1. Šiuo pasiūlymu pažymime, kad sutinkame su visomi pirkimo sąlygomis, nustatytomis:"]
["1.1. viešojo pirkimo dokumentuose"]
["1.2. kituose pirkimo dokumentuose (jų paaiškinimuose, papildymuose)."]
["2. Patvirtiname, kad informacija ir duomenys, pateikti pasiūlyme, yra teisingi ir apima viską, ko reikia tinkamam sutarties įvykdymui"]
["3. Patvirtiname, kad jei pasiūlyme nenurodyti kolegialaus priežiūros/valdymo organų nariai, šie organai juridiniuose asmenyse nėra sudaryti (taikoma, kai pirkimo dokumentuose nustatyti pašalinimo pagrindai)."]
["4. Pasiūlymas galioja iki termino, nustatyto pirkimo dokumentuose."]
["5. Tais atvejais, kai pagal galiojančius teisės aktus tiekėjui nereikia mokėti PVM, jis nurodo priežastis, dėl kurių PVM nemoka:"]
["6. Tiekėjas kainas pateikia, nurodydamas ne daugiau skaičių po kablelio, nei leidžiama pirkimo dokumentuose."]
["1. DALIS","CHIRURGININIŲ INSTRUMENTAI IR RINKINIAI"]
[]
["Tiekėjo pasiūlymas:"]
["Nr.","Pavadinimas","Maksimalus kiekis","Mato vienetas","Vieneto įkainis be PVM, Eur","Suma be PVM, Eur","Siūlomos prekės modelis ir modelio modifikacija (jei taikoma)","Siūlomų parametrų reikšmės ir pridedamo dokumento puslapis patvirtinantis siūlomo parametro reikšmę"]
["1.","Chirurgininių instrumentai ir rinkiniai"]
["1.1.","Tamponų žnyplės",40,"vnt.",24.3,{"$f":"IF(ISBLANK(E37),\"\", PRODUCT(C37,E37))","v":972},"AL 120-27"]
["1.1.1.","Gross-Maier tipo, tiesios, su užraktu, ilgis 27±1 cm",null,null,null,null,null,"Gross-Maier tipo, tiesios, su užraktu, ilgis 27 cm, psl. 2"]
["1.2.","Adatkotis",60,"vnt.",42.8,{"$f":"IF(ISBLANK(E39),\"\", PRODUCT(C39,E39))","v":2568},"AN 300-30"]
["1.2.1.","Mayo - Hegar tipo, ilgis 30±1 cm",null,null,null,null,null,"Mayo - Hegar tipo, ilgis 30 cm, psl. 3"]
["1.3.","Adatkotis",60,"vnt.",29.6,{"$f":"IF(ISBLANK(E41),\"\", PRODUCT(C41,E41))","v":1776},"AN 300-24"]
["1.3.1.","Mayo - Hegar tipo, ilgis 24±1 cm",null,null,null,null,null,"Mayo - Hegar tipo, ilgis 24 cm, psl. 3"]
["1.4.","Adatkotis",60,"vnt.",23.3,{"$f":"IF(ISBLANK(E43),\"\", PRODUCT(C43,E43))","v":1398},"AN 310-30"]
["1.4.1.","Mayo - Hegar tipo, lenktas, ilgis 30±1 cm",null,null,null,null,null,"Mayo - Hegar tipo, lenktas, ilgis 30 cm, psl. 3"]
["1.5.","Disekcinės žirklės",60,"vnt.",39.6,{"$f":"IF(ISBLANK(E45),\"\", PRODUCT(C45,E45))","v":2376},"AA 201-28"]
["1.5.1.","Metzenbaum tipo, lenktos, galai: bukas/bukas, ilgis 28±1 cm",null,null,null,null,null,"Metzenbaum tipo, lenktos, galai: bukas/bukas, ilgis 28 cm, psl. 4"]
["1.6.","Disekcinės žirklės",60,"vnt.",25.7,{"$f":"IF(ISBLANK(E47),\"\", PRODUCT(C47,E47))","v":1542},"AA 201-23"]
["1.6.1.","Metzenbaum tipo, lenktos, galai: bukas/bukas, ilgis 23±1 cm",null,null,null,null,null,"Metzenbaum tipo, lenktos, galai: bukas/bukas, ilgis 23 cm, psl. 4"]
["1.7.","Disekcinės žirklės",60,"vnt.",28.7,{"$f":"IF(ISBLANK(E49),\"\", PRODUCT(C49,E49))","v":1722},"AA 331-23"]
["1.7.1.","Metzenbaum tipo, lenktos, galai: smulkūs, ilgis 23±1 cm",null,null,null,null,null,"Metzenbaum tipo, lenktos, galai: smulkūs, ilgis 23 cm, psl. 4"]
["1.8.","Disekcinės žirklės",60,"vnt.",22.94,{"$f":"IF(ISBLANK(E51),\"\", PRODUCT(C51,E51))","v":1376.4},"AA 331-18"]
["1.8.1.","Metzenbaum tipo, lenktos, galai: smulkūs, ilgis  18±1 cm",null,null,null,null,null,"Metzenbaum tipo, lenktos, galai: smulkūs, ilgis  18 cm, psl. 4"]
["1.9.","Chirurginės žirklės",60,"vnt.",15,{"$f":"IF(ISBLANK(E53),\"\", PRODUCT(C53,E53))","v":900},"AA 101-14"]
["1.9.1.","Standartinės, lenktos, galai: bukas/bukas, ilgis 14,5±1 cm",null,null,null,null,null,"Standartinės, lenktos, galai: bukas/bukas, ilgis 14,5 cm, psl. 5"]
["1.10.","Žirklės",60,"vnt.",31.3,{"$f":"IF(ISBLANK(E55),\"\", PRODUCT(C55,E55))","v":1878},"AB 631-17"]
["1.10.1.","Doyen tipo, lenktos, galai: bukas/bukas, ilgis  17±1 cm",null,null,null,null,null,"Doyen tipo, lenktos, galai: bukas/bukas, ilgis  17 cm, psl. 6"]
["1.11.","Hemostatinis spaustukas",60,"vnt.",35.799999999999997,{"$f":"IF(ISBLANK(E57),\"\", PRODUCT(C57,E57))","v":2148},"AI 416-26"]
["1.11.1.","Kocher (Rochester-Ochsner) tipo, tiesus, 1x2 danteliai, ilgis 26±1cm",null,null,null,null,null,"Kocher (Rochester-Ochsner) tipo, tiesus, 1x2 danteliai, ilgis 26cm, psl. 7"]
["1.12.","Hemostatinis spaustukas",60,"vnt.",21.8,{"$f":"IF(ISBLANK(E59),\"\", PRODUCT(C59,E59))","v":1308},"AI 417-20"]
["1.12.1.","Kocher (Rochester-Ochsner) tipo, lenktas, 1x2 danteliai, ilgis 20±1 cm",null,null,null,null,null,"Kocher (Rochester-Ochsner) tipo, lenktas, 1x2 danteliai, ilgis 20 cm, psl. 7"]
["1.13.","Hemostatinis spaustukas",80,"vnt.",17.2,{"$f":"IF(ISBLANK(E61),\"\", PRODUCT(C61,E61))","v":1376},"AI 417-16"]
["1.13.1.","Hemostatinis spaustukas Kocher (Rochester-Ochsner) tipo, lenktas, 1x2 danteliai, ilgis 16±1 cm",null,null,null,null,null,"Hemostatinis spaustukas Kocher (Rochester-Ochsner) tipo,\nlenktas, 1x2 danteliai, ilgis 16 cm, psl. 7"]
["1.14.","Pilvaplėvės spaustukas",240,"vnt.",80,{"$f":"IF(ISBLANK(E63),\"\", PRODUCT(C63,E63))","v":19200},"AI 857-18"]
["1.14.1.","Mikulicz tipo, lenktas, 1x2 danteliai, ilgis 18±1 cm",null,null,null,null,null,"Mikulicz tipo, lenktas, 1x2 danteliai, ilgis 18 cm, psl. 8"]
["1.15.","Tamponų žnyplės",40,"vnt.",26.5,{"$f":"IF(ISBLANK(E65),\"\", PRODUCT(C65,E65))","v":1060},"AL 200-25"]
["1.15.1.","Forester tipo, tiesios, raižytas-ovalus distalinis galas, ilgis 25±1 cm",null,null,null,null,null,"Forester tipo, tiesios, raižytas-ovalus distalinis galas, ilgis 25 cm, psl. 9"]
["1.16.","Pilvaplėvės spaustukas",40,"vnt.",27,{"$f":"IF(ISBLANK(E67),\"\", PRODUCT(C67,E67))","v":1080},"AL 201-25"]
["1.16.1.","Tamponų žnyplės Forester tipo, lenktos, raižytas-ovalus distalinis galas, ilgis 25±1 cm",null,null,null,null,null,"Tamponų žnyplės Forester tipo, lenktos, raižytas-ovalus\n distalinis galas, ilgis 25 cm, psl. 9"]
["1.17.","Žarninis spaustukas",60,"vnt.",40.5,{"$f":"IF(ISBLANK(E69),\"\", PRODUCT(C69,E69))","v":2430},"MC 200-20"]
["1.17.1.","Thoms-Allis tipo, tiesus, distalinis galas su 6x7 dantukais, ilgis 20±1 cm",null,null,null,null,null,"Thoms-Allis tipo, tiesus, distalinis galas su 6x7 dantukais,\nilgis 20 cm, psl. 10"]
["1.18.","Hemostatinis ir disekcinis spaustukas",60,"vnt.",35.6,{"$f":"IF(ISBLANK(E71),\"\", PRODUCT(C71,E71))","v":2136},"AI 485-23"]
["1.18.1.","Mixter tipo, lenktas, ilgis 23±1 cm",null,null,null,null,null,"Mixter tipo, lenktas, ilgis 23 cm, psl. 11"]
["1.19.","Hemostatinis spaustukas",60,"vnt.",39,{"$f":"IF(ISBLANK(E73),\"\", PRODUCT(C73,E73))","v":2340},"AI 351-01"]
["1.19.1.","Negus tipo, lenktas, ilgis 19±1 cm",null,null,null,null,null,"Negus tipo, lenktas, ilgis 19 cm, psl. 12"]
["1.20.","Hemostatinis spaustukas",150,"vnt.",32,{"$f":"IF(ISBLANK(E75),\"\", PRODUCT(C75,E75))","v":4800},"AI 333-24"]
["1.20.1.","Pean (Rochester) tipo, lenktas, ilgis 24±1 cm",null,null,null,null,null,"Pean (Rochester) tipo, lenktas, ilgis 24 cm, psl. 13"]
["1.21.","Hemostatinis spaustukas",300,"vnt.",18,{"$f":"IF(ISBLANK(E77),\"\", PRODUCT(C77,E77))","v":5400},"AI 333-18"]
["1.21.1.","Pean (Rochester) tipo, lenktas, ilgis 18±1 cm",null,null,null,null,null,"Pean (Rochester) tipo, lenktas, ilgis 18 cm, psl. 13"]
["1.22.","Hemostatinis spaustukas",150,"vnt.",15.5,{"$f":"IF(ISBLANK(E79),\"\", PRODUCT(C79,E79))","v":2325},"AI 333-16"]
["1.22.1.","Pean (Rochester) tipo, lenktas, ilgis 16±1 cm",null,null,null,null,null,"Pean (Rochester) tipo, lenktas, ilgis 16 cm, psl. 13"]
["1.23.","Hemostatinis spaustukas",90,"vnt.",29.2,{"$f":"IF(ISBLANK(E81),\"\", PRODUCT(C81,E81))","v":2628},"AI 332-24"]
["1.23.1.","Pean (Rochester) tipo, tiesus, ilgis 24±1 cm",null,null,null,null,null,"Pean (Rochester) tipo, tiesus, ilgis 24 cm, psl. 13"]
["1.24.","Hemostatinis spaustukas",150,"vnt.",14.6,{"$f":"IF(ISBLANK(E83),\"\", PRODUCT(C83,E83))","v":2190},"AI 101-14"]
["1.24.1.","Halstead-Mosquito, lenktas, ilgis 14±1 cm",null,null,null,null,null,"Halstead-Mosquito, lenktas, ilgis 14 cm, psl. 14"]
["1.25.","Hemostatinis spaustukas",180,"vnt.",14.2,{"$f":"IF(ISBLANK(E85),\"\", PRODUCT(C85,E85))","v":2556},"AI 100-14"]
["1.25.1.","Halstead-Mosquito, tiesus, ilgis 14±1 cm",null,null,null,null,null,"Halstead-Mosquito, tiesus, ilgis 14 cm, psl. 14"]
["1.26.","Spaustukas",180,"vnt.",13.2,{"$f":"IF(ISBLANK(E87),\"\", PRODUCT(C87,E87))","v":2376},"AK 151-13"]
["1.26.1.","Backhaus tipo, lenktas, ilgis 13±1 cm",null,null,null,null,null,"Backhaus tipo, lenktas, ilgis 13 cm, psl. 15"]
["1.27.","Anatominis pincetas",80,"vnt.",17,{"$f":"IF(ISBLANK(E89),\"\", PRODUCT(C89,E89))","v":1360},"AE 100-25"]
["1.27.1.","Standartinis, didelio pločio, tiesus, ilgis 25±1 cm",null,null,null,null,null,"Standartinis, didelio pločio, tiesus, ilgis 25 cm, psl. 16"]
["1.28.","Anatominis pincetas",80,"vnt.",21,{"$f":"IF(ISBLANK(E91),\"\", PRODUCT(C91,E91))","v":1680},"AE 100-30"]
["1.28.1.","Standartinis, tiesus, ilgis 30±1 cm",null,null,null,null,null,"Standartinis, tiesus, ilgis 30 cm, psl. 16"]
["1.29.","Anatominis pincetas",80,"vnt.",12,{"$f":"IF(ISBLANK(E93),\"\", PRODUCT(C93,E93))","v":960},"AE 100-20"]
["1.29.1.","Standartinis, tiesus, ilgis 20±1 cm",null,null,null,null,null,"Standartinis, tiesus, ilgis 20 cm, psl. 16"]
["1.30.","Anatominis pincetas",120,"vnt.",7.9,{"$f":"IF(ISBLANK(E95),\"\", PRODUCT(C95,E95))","v":948},"AE 100-14"]
["1.30.1.","Standartinis, tiesus, ilgis 14,5±1 cm",null,null,null,null,null,"Standartinis, tiesus, ilgis 14,5 cm, psl. 16"]
["1.31.","Chirurginis pincetas",120,"vnt.",8.3000000000000007,{"$f":"IF(ISBLANK(E97),\"\", PRODUCT(C97,E97))","v":996.00000000000011},"AE 406-14"]
["1.31.1.","Standartinis, tiesus, 1x2 danteliai, ilgis 14,5±1 cm",null,null,null,null,null,"Standartinis, tiesus, 1x2 danteliai, ilgis 14,5 cm, psl. 17"]
["1.32.","Skalpelio rankenėlė",120,"vnt.",4.3,{"$f":"IF(ISBLANK(E99),\"\", PRODUCT(C99,E99))","v":516},"AS 100-03"]
["1.32.1.","Standartinė,  12±1cm, skalpeliams nuo 10 iki 17 numerio",null,null,null,null,null,"Standartinė,  12,5 cm, skalpeliams nuo 10 iki 17 numerio, psl. 18"]
["1.33.","Skalpelio rankenėlė",120,"vnt.",4.3,{"$f":"IF(ISBLANK(E101),\"\", PRODUCT(C101,E101))","v":516},"AS 100-04"]
["1.33.1.","Standartinė, 13±1cm, skalpeliams nuo 18 iki 36 numerio",null,null,null,null,null,"Standartinė, 13,5cm, skalpeliams nuo 18 iki 36 numerio, psl. 18"]
["1.34.","Skalpelio rankenėlė",60,"vnt.",11.3,{"$f":"IF(ISBLANK(E103),\"\", PRODUCT(C103,E103))","v":678},"AS 110-03"]
["1.34.1.","Standartinė, ilga, 20±1cm, skalpeliams nuo 10 iki 17 numerio",null,null,null,null,null,"Standartinė, ilga, 21cm, skalpeliams nuo 10 iki 17 numerio, psl. 19"]
["1.35.","Skalpelio rankenėlė",60,"vnt.",11,{"$f":"IF(ISBLANK(E105),\"\", PRODUCT(C105,E105))","v":660},"AS 110-04"]
["1.35.1.","Standartinė, ilga, 20±1cm, skalpeliams nuo 18 iki 36 numerio",null,null,null,null,null,"Standartinė, ilga, 21cm, skalpeliams nuo 18 iki 36 numerio, psl. 19"]
["1.36.","Zondas",50,"vnt.",24.2,{"$f":"IF(ISBLANK(E107),\"\", PRODUCT(C107,E107))","v":1210},"GK 250-32"]
["1.36.1.","Sims tipo, metalinis, ilgis 32±1 cm",null,null,null,null,null,"Sims tipo, metalinis, ilgis 32 cm, psl. 20"]
["1.37.","Zondas",40,"vnt.",28.6,{"$f":"IF(ISBLANK(E109),\"\", PRODUCT(C109,E109))","v":1144},"GK 310-25"]
["1.37.1.","Valleix tipo, ilgis 25±1 cm",null,null,null,null,null,"Valleix tipo, ilgis 25 cm, psl. 20"]
["1.38.","Dilatatorius",40,"vnt.",17.399999999999999,{"$f":"IF(ISBLANK(E111),\"\", PRODUCT(C111,E111))","v":696},"GK 221-15"]
["1.38.1.","Pratt tipo, diametras 13/15 ±1mm, ilgis 29±1 cm",null,null,null,null,null,"Pratt tipo, diametras 13/15mm, ilgis 29 cm, psl. 21"]
["1.39.","Dilatatorius",40,"vnt.",17.399999999999999,{"$f":"IF(ISBLANK(E113),\"\", PRODUCT(C113,E113))","v":696},"GK 221-19"]
["1.39.1.","Pratt tipo, diametras 17/19 ±1 mm, ilgis 29±1 cm",null,null,null,null,null,"Pratt tipo, diametras 17/19 mm, ilgis 29 cm, psl. 21"]
["1.40.","Dilatatorius",40,"vnt.",18.8,{"$f":"IF(ISBLANK(E115),\"\", PRODUCT(C115,E115))","v":752},"GK 221-23"]
["1.40.1.","Pratt tipo, diametras 21/23 ±1 mm, ilgis 29±1 cm",null,null,null,null,null,"Pratt tipo, diametras 21/23 mm, ilgis 29 cm, psl. 21"]
["1.41.","Dilatatorius",40,"vnt.",18.8,{"$f":"IF(ISBLANK(E117),\"\", PRODUCT(C117,E117))","v":752},"GK 221-27"]
["1.41.1.","Pratt tipo, diametras 25/27 ±1 mm, ilgis 29±1 cm",null,null,null,null,null,"Pratt tipo, diametras 25/27 mm, ilgis 29 cm, psl. 21"]
["1.42.","Retraktorius",30,"vnt.",74.5,{"$f":"IF(ISBLANK(E119),\"\", PRODUCT(C119,E119))","v":2235},"AX 780-02"]
["1.42.1.","Mikulicz tipo, gaubtas, mentelės dydis 120x50±1mm, ilgis 25±1 cm",null,null,null,null,null,"Mikulicz tipo, gaubtas, mentelės dydis 120x50mm, ilgis 25 cm, psl. 22"]
["1.43.","Retraktorius",30,"vnt.",98.7,{"$f":"IF(ISBLANK(E121),\"\", PRODUCT(C121,E121))","v":2961},"AX 780-04"]
["1.43.1.","Mikulicz tipo, gaubtas, mentelės dydis 180x50±1mm, ilgis 25±1 cm",null,null,null,null,null,"Mikulicz tipo, gaubtas, mentelės dydis 180x50mm, ilgis 25 cm, psl. 22"]
["1.44.","Retraktorius",30,"vnt.",74.5,{"$f":"IF(ISBLANK(E123),\"\", PRODUCT(C123,E123))","v":2235},"AX 782-25"]
["1.44.1.","Mikulicz tipo, mentelės dydis 90x50±1mm, ilgis 25±1 cm",null,null,null,null,null,"Mikulicz tipo, mentelės dydis 90x50mm, ilgis 25 cm, psl. 22"]
["1.45.","Retraktorius",30,"vnt.",34.799999999999997,{"$f":"IF(ISBLANK(E125),\"\", PRODUCT(C125,E125))","v":1044},"AX 705-23"]
["1.45.1.","Tuffier tipo, mentelės dydis 64x60±1mm, ilgis 23±1 cm",null,null,null,null,null,"Tuffier tipo, mentelės dydis 64x60mm, ilgis 23 cm, psl. 23"]
["1.46.","Retraktorius",30,"vnt.",52.5,{"$f":"IF(ISBLANK(E127),\"\", PRODUCT(C127,E127))","v":1575},"AX 770-18"]
["1.46.1.","Brunner tipo, mentelės dydis 180x30±1mm, ilgis 25±1 cm",null,null,null,null,null,"Brunner tipo, mentelės dydis 180x30mm, ilgis 25 cm, psl. 22"]
["1.47.","Retraktorius",50,"vnt.",42.6,{"$f":"IF(ISBLANK(E129),\"\", PRODUCT(C129,E129))","v":2130},"AX 410-30"]
["1.47.1.","Kocher tipo, mentelės dydis 75x30±1mm, ilgis 23±1 cm",null,null,null,null,null,"Kocher tipo, mentelės dydis 75x30mm, ilgis 23 cm, psl. 25"]
["1.48.","Retraktorius",30,"vnt.",38.799999999999997,{"$f":"IF(ISBLANK(E131),\"\", PRODUCT(C131,E131))","v":1164},"AX 322-04"]
["1.48.1.","Volkmann tipo, 4 danteliai, danteliai pusiau aštrūs, ilgis 21,5±1 cm",null,null,null,null,null,"Volkmann tipo, 4 danteliai, danteliai pusiau aštrūs, ilgis 21,5 cm, psl. 26"]
["1.49.","Retraktorius",30,"vnt.",37.200000000000003,{"$f":"IF(ISBLANK(E133),\"\", PRODUCT(C133,E133))","v":1116},"AX 322-03"]
["1.49.1.","Volkmann tipo, 3 danteliai, danteliai pusiau aštrūs, ilgis 21,5±1 cm",null,null,null,null,null,"Volkmann tipo, 3 danteliai, danteliai pusiau aštrūs, ilgis 21,5 cm, psl. 26"]
["1.50.","Retraktorius",20,"vnt.",52.7,{"$f":"IF(ISBLANK(E135),\"\", PRODUCT(C135,E135))","v":1054},"AZ 602-58"]
["1.50.1.","Doyen tipo, mentelės dydis 55x125±1mm, ilgis 28±1 cm",null,null,null,null,null,"Doyen tipo, mentelės dydis 55x125mm, ilgis 28 cm, psl. 27"]
["1.51.","Retraktorius",20,"vnt.",84.3,{"$f":"IF(ISBLANK(E137),\"\", PRODUCT(C137,E137))","v":1686},"AX 700-25"]
["1.51.1.","Doyen tipo, mentelės dydis 80x53±1mm, ilgis 25±1 cm",null,null,null,null,null,"Doyen tipo, mentelės dydis 80x53mm, ilgis 25 cm, psl. 28"]
["1.52.","Retraktorius",20,"vnt.",64.2,{"$f":"IF(ISBLANK(E139),\"\", PRODUCT(C139,E139))","v":1284},"AX 700-26"]
["1.52.1.","Doyen tipo, mentelės dydis 78x82±1mm, ilgis 26±1 cm",null,null,null,null,null,"Doyen tipo, mentelės dydis 78x82mm, ilgis 26 cm, psl. 28"]
["1.53.","Retraktorius",20,"vnt.",37,{"$f":"IF(ISBLANK(E141),\"\", PRODUCT(C141,E141))","v":740},"AX 900-28"]
["1.53.1.","Reverdin tipo, mentelės dydis 45x60±1mm, ilgis 28±1 cm",null,null,null,null,null,"Reverdin tipo, mentelės dydis 45x60mm, ilgis 28 cm, psl. 29"]
["1.54.","Abdominalinė mentelė",20,"vnt.",21,{"$f":"IF(ISBLANK(E143),\"\", PRODUCT(C143,E143))","v":420},"AX 914-75"]
["1.54.1.","Ochsner tipo, mentelės dydis 76±1mm, ilgis 33±1 cm",null,null,null,null,null,"Ochsner tipo, mentelės dydis 76mm, ilgis 33 cm, psl. 30"]
["1.55.","Abdominalinis prapletėjas",30,"vnt.",493.2,{"$f":"IF(ISBLANK(E145),\"\", PRODUCT(C145,E145))","v":14796},"AZ 500-00"]
["1.55.1.","Balfour-usa tipo, plėtėjo dydis 180±1mm, centrinė mentelė 70x85±1mm, antra centrinė mentelė 68x84±1mm, lateralinė mentelė 50±1mm, antra lateralinė mentelė 75±1mm",null,null,null,null,null,"Balfour-usa tipo, plėtėjo dydis 180mm, centrinė mentelė 70x85mm, \nantra centrinė mentelė 68x84mm, lateralinė mentelė 50mm, antra lateralinė mentelė 75mm, psl. 31"]
["1.56.","Inkstų akmenų žnyplės",20,"vnt.",44.8,{"$f":"IF(ISBLANK(E147),\"\", PRODUCT(C147,E147))","v":896},"MH 101-02"]
["1.56.1.","Randall tipo, silpnai lenktos nuo 30 iki 90 laipsnių, ilgis 22±1 cm",null,null,null,null,null,"Randall tipo, silpnai lenktos 30 laipsnių, ilgis 22 cm, psl. 32"]
["1.57.","Inkstų akmenų žnyplės",20,"vnt.",47.8,{"$f":"IF(ISBLANK(E149),\"\", PRODUCT(C149,E149))","v":956},"MH 101-03"]
["1.57.1.","Randall tipo, stipriai lenktos nuo 95 iki 135 laipsnių, ilgis 22±1 cm",null,null,null,null,null,"Randall tipo, stipriai lenktos nuo 95 laipsnių, ilgis 22 cm, psl. 32"]
["1.58.","Retraktorius",15,"vnt.",136.19999999999999,{"$f":"IF(ISBLANK(E151),\"\", PRODUCT(C151,E151))","v":2042.9999999999998},"AX 720-03"]
["1.58.1.","St.Marks tipo, mentelės dydis 60x45±1mm, ilgis 33±1 cm",null,null,null,null,null,"St.Marks tipo, mentelės dydis 60x45mm, ilgis 33 cm, psl. 33"]
["1.59.","Indas",40,"vnt.",10.4,{"$f":"IF(ISBLANK(E153),\"\", PRODUCT(C153,E153))","v":416},"SO 100-25"]
["1.59.1.","Inksto formos, išmatavimai 250x40±1 mm, talpa 0,5 litro",null,null,null,null,null,"Inksto formos, išmatavimai 250x40 mm, talpa 0,5 litro, psl. 34"]
["1.60.","Indas",40,"vnt.",9.8000000000000007,{"$f":"IF(ISBLANK(E155),\"\", PRODUCT(C155,E155))","v":392},"SO 110-70"]
["1.60.1.","Puodelio formos, su rankena, išmatavimai 70x100±1 mm, talpa 0,35 litro",null,null,null,null,null,"Puodelio formos, su rankena,\n išmatavimai 70x100 mm, talpa 0,35 litro, psl. 34"]
["1.61.","Adata",40,"vnt.",34.799999999999997,{"$f":"IF(ISBLANK(E157),\"\", PRODUCT(C157,E157))","v":1392},"AN 604-20"]
["1.61.1.","Deschamps tipo, kairiarankiams, mažai lenkta, ilgis 20±1 cm",null,null,null,null,null,"Deschamps tipo, kairiarankiams, mažai lenkta, ilgis 20 cm, psl. 35"]
["1.62.","Adata",40,"vnt.",34.799999999999997,{"$f":"IF(ISBLANK(E159),\"\", PRODUCT(C159,E159))","v":1392},"AN 605-20"]
["1.62.1.","Deschamps tipo, dešiniarankiams, mažai lenkta, ilgis 20±1 cm",null,null,null,null,null,"Deschamps tipo, dešiniarankiams, mažai lenkta, ilgis 20 cm, psl. 35"]
["1.63.","Dilatatorius",10,"vnt.",7.5,{"$f":"IF(ISBLANK(E161),\"\", PRODUCT(C161,E161))","v":75},"GK 100-02"]
["1.63.1.","Hegar tipo, 2 mm",null,null,null,null,null,"Hegar tipo, 2 mm, psl. 36"]
["1.64.","Dilatatorius",10,"vnt.",7.5,{"$f":"IF(ISBLANK(E163),\"\", PRODUCT(C163,E163))","v":75},"GK 100-03"]
["1.64.1.","Hegar tipo, 3 mm",null,null,null,null,null,"Hegar tipo, 3 mm, psl. 36"]
["1.65.","Dilatatorius",10,"vnt.",7.5,{"$f":"IF(ISBLANK(E165),\"\", PRODUCT(C165,E165))","v":75},"GK 100-04"]
["1.65.1.","Dilatatorius Hegar tipo, 4 mm",null,null,null,null,null,"Dilatatorius Hegar tipo, 4 mm, psl. 36"]
["1.66.","Dilatatorius",10,"vnt.",7.5,{"$f":"IF(ISBLANK(E167),\"\", PRODUCT(C167,E167))","v":75},"GK 100-05"]
["1.66.1.","Dilatatorius Hegar tipo, 5 mm",null,null,null,null,null,"Dilatatorius Hegar tipo, 5 mm, psl. 36"]
["1.67.","Dilatatorius",10,"vnt.",14.2,{"$f":"IF(ISBLANK(E169),\"\", PRODUCT(C169,E169))","v":142},"GK 100-06"]
["1.67.1.","Dilatatorius Hegar tipo, 6 mm",null,null,null,null,null,"Dilatatorius Hegar tipo, 6 mm, psl. 36"]
["1.68.","Dilatatorius",10,"vnt.",14.2,{"$f":"IF(ISBLANK(E171),\"\", PRODUCT(C171,E171))","v":142},"GK 100-07"]
["1.68.1.","Dilatatorius Hegar tipo, 7 mm",null,null,null,null,null,"Dilatatorius Hegar tipo, 7 mm, psl. 36"]
["1.69.","Dilatatorius",10,"vnt.",14.2,{"$f":"IF(ISBLANK(E173),\"\", PRODUCT(C173,E173))","v":142},"GK 100-08"]
["1.69.1.","Dilatatorius Hegar tipo, 8 mm",null,null,null,null,null,"Dilatatorius Hegar tipo, 8 mm, psl. 36"]
["1.70.","Dilatatorius",10,"vnt.",14.2,{"$f":"IF(ISBLANK(E175),\"\", PRODUCT(C175,E175))","v":142},"GK 100-09"]
["1.70.1.","Dilatatorius Hegar tipo, 9 mm",null,null,null,null,null,"Dilatatorius Hegar tipo, 9 mm, psl. 36"]
["1.71.","Dilatatorius",10,"vnt.",14.2,{"$f":"IF(ISBLANK(E177),\"\", PRODUCT(C177,E177))","v":142},"GK 100-10"]
["1.71.1.","Dilatatorius Hegar tipo, 10 mm",null,null,null,null,null,"Dilatatorius Hegar tipo, 10 mm, psl. 36"]
["1.72.","Dilatatorius",10,"vnt.",19.8,{"$f":"IF(ISBLANK(E179),\"\", PRODUCT(C179,E179))","v":198},"GK 100-11"]
["1.72.1.","Dilatatorius Hegar tipo, 11 mm",null,null,null,null,null,"Dilatatorius Hegar tipo, 11 mm, psl. 36"]
["1.73.","Dilatatorius",10,"vnt.",19.8,{"$f":"IF(ISBLANK(E181),\"\", PRODUCT(C181,E181))","v":198},"GK 100-12"]
["1.73.1.","Dilatatorius Hegar tipo, 12 mm",null,null,null,null,null,"Dilatatorius Hegar tipo, 12 mm, psl. 36"]
["1.74.","Dilatatorius",10,"vnt.",19.8,{"$f":"IF(ISBLANK(E183),\"\", PRODUCT(C183,E183))","v":198},"GK 100-13"]
["1.74.1.","Dilatatorius Hegar tipo, 13 mm",null,null,null,null,null,"Dilatatorius Hegar tipo, 13 mm, psl. 36"]
["1.75.","Dilatatorius",10,"vnt.",19.8,{"$f":"IF(ISBLANK(E185),\"\", PRODUCT(C185,E185))","v":198},"GK 100-14"]
["1.75.1.","Dilatatorius Hegar tipo, 14 mm",null,null,null,null,null,"Dilatatorius Hegar tipo, 14 mm, psl. 36"]
["1.76.","Dilatatorius",10,"vnt.",19.8,{"$f":"IF(ISBLANK(E187),\"\", PRODUCT(C187,E187))","v":198},"GK 100-15"]
["1.76.1.","Dilatatorius Hegar tipo, 15 mm",null,null,null,null,null,"Dilatatorius Hegar tipo, 15 mm, psl. 36"]
["1.77.","Dilatatorius",10,"vnt.",25.6,{"$f":"IF(ISBLANK(E189),\"\", PRODUCT(C189,E189))","v":256},"GK 100-16"]
["1.77.1.","Dilatatorius Hegar tipo, 16 mm",null,null,null,null,null,"Dilatatorius Hegar tipo, 16 mm, psl. 36"]
["1.78.","Dilatatorius",10,"vnt.",25.6,{"$f":"IF(ISBLANK(E191),\"\", PRODUCT(C191,E191))","v":256},"GK 100-17"]
["1.78.1.","Dilatatorius Hegar tipo, 17 mm",null,null,null,null,null,"Dilatatorius Hegar tipo, 17 mm, psl. 36"]
["1.79.","Dilatatorius",10,"vnt.",28.7,{"$f":"IF(ISBLANK(E193),\"\", PRODUCT(C193,E193))","v":287},"GK 100-19"]
["1.79.1.","Dilatatorius Hegar tipo, 19 mm",null,null,null,null,null,"Dilatatorius Hegar tipo, 19 mm, psl. 36"]
["1.80.","Dilatatorius",10,"vnt.",28.7,{"$f":"IF(ISBLANK(E195),\"\", PRODUCT(C195,E195))","v":287},"GK 100-20"]
["1.80.1.","Dilatatorius Hegar tipo, 20 mm",null,null,null,null,null,"Dilatatorius Hegar tipo, 20 mm, psl. 36"]
["1.81.","Dilatatorius",10,"vnt.",34.9,{"$f":"IF(ISBLANK(E197),\"\", PRODUCT(C197,E197))","v":349},"GK 100-21"]
["1.81.1.","Dilatatorius Hegar tipo, 21 mm",null,null,null,null,null,"Dilatatorius Hegar tipo, 21 mm, psl. 36"]
["1.82.","Dilatatorius",10,"vnt.",34.9,{"$f":"IF(ISBLANK(E199),\"\", PRODUCT(C199,E199))","v":349},"GK 100-22"]
["1.82.1.","Dilatatorius Hegar tipo, 22 mm",null,null,null,null,null,"Dilatatorius Hegar tipo, 22 mm, psl. 36"]
["1.83.","Dilatatorius",10,"vnt.",34.9,{"$f":"IF(ISBLANK(E201),\"\", PRODUCT(C201,E201))","v":349},"GK 100-23"]
["1.83.1.","Dilatatorius Hegar tipo, 23 mm",null,null,null,null,null,"Dilatatorius Hegar tipo, 23 mm, psl. 36"]
["1.84.","Dilatatorius",10,"vnt.",34.9,{"$f":"IF(ISBLANK(E203),\"\", PRODUCT(C203,E203))","v":349},"GK 100-24"]
["1.84.1.","Dilatatorius Hegar tipo, 24 mm",null,null,null,null,null,"Dilatatorius Hegar tipo, 24 mm, psl. 36"]
["1.85.","Dilatatorius",10,"vnt.",39.700000000000003,{"$f":"IF(ISBLANK(E205),\"\", PRODUCT(C205,E205))","v":397},"GK 100-25"]
["1.85.1.","Dilatatorius Hegar tipo, 25 mm",null,null,null,null,null,"Dilatatorius Hegar tipo, 25 mm, psl. 36"]
[null,null,null,null,"Suma be PVM",{"$f":"IF((COUNT(C37:C206)<>COUNT(F37:F206)),\"\", SUM(F37:F206))","v":132231.4},{"$f":"IF((COUNT(C37:C206)<>COUNT(F37:F206)),\"Neužpildytos visų objektų kainos\", \"\")","v":""}]
[null,null,null,null,"PVM suma",{"$f":"ROUND(F207*0.21,2)","v":27768.59}]
[null,null,null,null,"Suma su PVM",{"$f":"IF(ISBLANK(F208), \"\", SUM(F207:F208))","v":159999.99}]
[]
[]
[]
["2. DALIS","INSTRUMENTAI IR RINKINIAI"]
[]
["Tiekėjo pasiūlymas:"]
["Nr.","Pavadinimas","Maksimalus kiekis","Mato vienetas","Vieneto įkainis be PVM, Eur","Suma be PVM, Eur","Siūlomos prekės modelis ir modelio modifikacija (jei taikoma)","Siūlomų parametrų reikšmės ir pridedamo dokumento puslapis patvirtinantis siūlomo parametro reikšmę"]
["2.","Instrumentai ir rinkiniai"]
["2.1.","Spaustukas",60,"vnt.",16.3,{"$f":"IF(ISBLANK(E218),\"\", PRODUCT(C218,E218))","v":978},"AK 155-13"]
["2.1.1.","Backhaus tipo, lenktas, ilgis 13±1 cm",null,null,null,null,null,"Backhaus tipo, lenktas, ilgis 13 cm, psl. 37"]
["2.2.","Hemostatinis spaustukas",60,"vnt.",15.9,{"$f":"IF(ISBLANK(E220),\"\", PRODUCT(C220,E220))","v":954},"AI 417-14"]
["2.2.1.","Kocher (Rochester-Ochsner) tipo, lenktas, 1x2 danteliai, ilgis 14±1 cm",null,null,null,null,null,"Kocher (Rochester-Ochsner) tipo, lenktas, 1x2 danteliai,\nilgis 14 cm, psl. 38"]
["2.3.","Hemostatinis spaustukas",100,"vnt.",17.7,{"$f":"IF(ISBLANK(E222),\"\", PRODUCT(C222,E222))","v":1770},"AI 331-14"]
["2.3.1.","Pean tipo, lenktas, smulkus, ilgis 14±1 cm",null,null,null,null,null,"Pean tipo, lenktas, smulkus, ilgis 14 cm, psl. 39"]
["2.4.","Anatominis pincetas",60,"vnt.",8.3000000000000007,{"$f":"IF(ISBLANK(E224),\"\", PRODUCT(C224,E224))","v":498.00000000000006},"AE 100-16"]
["2.4.1.","Standartinis, tiesus, ilgis 16±1 cm",null,null,null,null,null,"Standartinis, tiesus, ilgis 16 cm, psl. 40"]
["2.5.","Chirurginis pincetas",60,"vnt.",8.6999999999999993,{"$f":"IF(ISBLANK(E226),\"\", PRODUCT(C226,E226))","v":522},"AE 406-16"]
["2.5.1.","Standartinis, tiesus, 1x2 danteliai, ilgis 16±1 cm",null,null,null,null,null,"Standartinis, tiesus, 1x2 danteliai, ilgis 16 cm, psl. 41"]
["2.6.","Chirurginės žirklės",60,"vnt.",14,{"$f":"IF(ISBLANK(E228),\"\", PRODUCT(C228,E228))","v":840},"AA 102-13"]
["2.6.1.","Standartinės, tiesios, galai: aštrus/bukas, ilgis 13±1 cm",null,null,null,null,null,"Standartinės, tiesios, galai: aštrus/bukas, ilgis 13 cm, psl. 42"]
["2.7.","Chirurginės žirklės",60,"vnt.",20.7,{"$f":"IF(ISBLANK(E230),\"\", PRODUCT(C230,E230))","v":1242},"AA 103-18"]
["2.7.1.","Standartinės, lenktos, galai: aštrus/bukas, ilgis 18,5±1 cm",null,null,null,null,null,"Standartinės, lenktos, galai: aštrus/bukas, ilgis 18,5 cm, psl. 42"]
["2.8.","Kabinančios žnyplės",20,"vnt.",24.9,{"$f":"IF(ISBLANK(E232),\"\", PRODUCT(C232,E232))","v":498},"GK 608-20"]
["2.8.1.","Jarcho tipo, tiesios, su užraktu, ilgis 20±1 cm",null,null,null,null,null,"Jarcho tipo, tiesios, su užraktu, ilgis 20 cm, psl. 43"]
["2.9.","Tamponų žnyplės",20,"vnt.",24.3,{"$f":"IF(ISBLANK(E234),\"\", PRODUCT(C234,E234))","v":486},"AL 120-27"]
["2.9.1.","Gross-Maier tipo, tiesios, su užraktu, ilgis 27±1 cm",null,null,null,null,null,"Gross-Maier tipo, tiesios, su užraktu, ilgis 27 cm, psl. 44"]
["2.10.","Kabinančios žnyplės",6,"vnt.",36.1,{"$f":"IF(ISBLANK(E236),\"\", PRODUCT(C236,E236))","v":216.60000000000002},"GK 680-24"]
["2.10.1.","Schroder tipo, su dvigubais 2x2 dantukais, tiesios, su užraktu, ilgis 24±1 cm",null,null,null,null,null,"Schroder tipo, su dvigubais 2x2 dantukais,\n tiesios, su užraktu, ilgis 24 cm, psl. 45"]
["2.11.","Myomos instrumentas",2,"vnt.",52.8,{"$f":"IF(ISBLANK(E238),\"\", PRODUCT(C238,E238))","v":105.6},"GK 940-17"]
["2.11.1.","Doyen tipo, stambaus sraigto, ilgis 17±1 cm",null,null,null,null,null,"Doyen tipo, stambaus sraigto, ilgis 17 cm, psl. 46"]
["2.12.","Myomos instrumentas",2,"vnt.",52.8,{"$f":"IF(ISBLANK(E240),\"\", PRODUCT(C240,E240))","v":105.6},"GK 950-17"]
["2.12.1.","Doyen tipo, smulkaus sraigto, ilgis 17±1 cm",null,null,null,null,null,"Doyen tipo, smulkaus sraigto, ilgis 17 cm, psl. 46"]
["2.13.","Retraktorius",15,"vnt.",66.599999999999994,{"$f":"IF(ISBLANK(E242),\"\", PRODUCT(C242,E242))","v":998.99999999999989},"AX 580-05"]
["2.13.1.","Fritsch tipo, gaubtas, mentelės dydis 65x85±1mm, ilgis 25±1 cm",null,null,null,null,null,"Fritsch tipo, gaubtas, mentelės dydis 65x85mm, ilgis 25 cm, psl. 47"]
["2.14.","Retraktorius",15,"vnt.",30.7,{"$f":"IF(ISBLANK(E244),\"\", PRODUCT(C244,E244))","v":460.5},"AX 630-00"]
["2.14.1.","Parker-Lagenbeck tipo, dvigubas, dviejų mentelių, mentelių dydžiai: 24x15/37x15±1mm; 29x15/42x15±1 mm; ilgis 25±1 cm",null,null,null,null,null,"Parker-Lagenbeck tipo, dvigubas, dviejų mentelių,\n mentelių dydžiai: 24x15/37x15mm; 29x15/42x15 mm; ilgis 25 cm, psl. 48"]
["2.15.","Tamponų žnyplės",6,"vnt.",20.399999999999999,{"$f":"IF(ISBLANK(E246),\"\", PRODUCT(C246,E246))","v":122.39999999999999},"AL 250-24"]
["2.15.1.","Fletcher Javert tipo, su užraktu, ilgis 24±1 cm",null,null,null,null,null,"Fletcher Javert tipo, su užraktu, ilgis 24 cm, psl. 49"]
["2.16.","Retraktorius",20,"vnt.",42.9,{"$f":"IF(ISBLANK(E248),\"\", PRODUCT(C248,E248))","v":858},"GD 460-02"]
["2.16.1.","Kristeller tipo, dvigubas, ilga ir gili forma, mentelių dydžiai: 110x30±5mm; 115x26±5 mm",null,null,null,null,null,"Kristeller tipo, dvigubas, ilga ir gili forma,\n mentelių dydžiai: 110x30mm; 115x26 mm, psl. 50"]
["2.17.","Retraktorius",20,"vnt.",57.2,{"$f":"IF(ISBLANK(E250),\"\", PRODUCT(C250,E250))","v":1144},"GD 440-02"]
["2.17.1.","Kristeller tipo, dvigubas, siaura forma, mentelių dydžiai: 105x21±5mm; 110x17±5 mm;",null,null,null,null,null,"Kristeller tipo, dvigubas, siaura forma,\n mentelių dydžiai: 105x21mm; 110x17 mm, psl. 51"]
["2.18.","Kiuretė",4,"vnt.",46.1,{"$f":"IF(ISBLANK(E252),\"\", PRODUCT(C252,E252))","v":184.4},"GK 414-12"]
["2.18.1.","Bumm tipo, buka, ilgis 26±1 cm",null,null,null,null,null,"Bumm tipo, buka, ilgis 26 cm, psl. 52"]
["2.19.","Kiuretė",4,"vnt.",46.1,{"$f":"IF(ISBLANK(E254),\"\", PRODUCT(C254,E254))","v":184.4},"GK 414-09"]
["2.19.1.","Bumm tipo, buka, ilgis 21,5±1 cm",null,null,null,null,null,"Bumm tipo, buka, ilgis 21,5 cm, psl. 52"]
["2.20.","Kiuretė",15,"vnt.",40.9,{"$f":"IF(ISBLANK(E256),\"\", PRODUCT(C256,E256))","v":613.5},"GK 409-02"]
["2.20.1.","Sims tipo, kieta, aštri, dydis 8±1 mm, ilgis 26±1 cm",null,null,null,null,null,"Sims tipo, kieta, aštri, dydis 8 mm, ilgis 26 cm, psl. 53"]
["2.21.","Kiuretė",15,"vnt.",40.9,{"$f":"IF(ISBLANK(E258),\"\", PRODUCT(C258,E258))","v":613.5},"GK 409-04"]
["2.21.1.","Sims tipo, kieta, aštri, dydis 11±1 mm, ilgis 26±1 cm",null,null,null,null,null,"Sims tipo, kieta, aštri, dydis 11 mm, ilgis 26 cm, psl. 53"]
["2.22.","Kiuretė",15,"vnt.",40.9,{"$f":"IF(ISBLANK(E260),\"\", PRODUCT(C260,E260))","v":613.5},"GK 409-06"]
["2.22.1.","Sims tipo, kieta, aštri, dydis 14±1 mm, ilgis 26±1 cm",null,null,null,null,null,"Sims tipo, kieta, aštri, dydis 14 mm, ilgis 26 cm, psl. 53"]
["2.23.","Biopsinės žnyplės",2,"vnt.",336.2,{"$f":"IF(ISBLANK(E262),\"\", PRODUCT(C262,E262))","v":672.4},"GO 200-20"]
["2.23.1.","Alexander tipo, žnybto dydis 5±1 mm, ilgis 20±1 cm",null,null,null,null,null,"Alexander tipo, žnybto dydis 5,1 mm, ilgis 20 cm, psl. 54"]
["2.24.","Biopsinės žnyplės",2,"vnt.",266.60000000000002,{"$f":"IF(ISBLANK(E264),\"\", PRODUCT(C264,E264))","v":533.20000000000005},"GO 221-24"]
["2.24.1.","Schuhmacher tipo, žnybto dydis 4±1 mm, ilgis 24±1 cm",null,null,null,null,null,"Schuhmacher tipo, žnybto dydis 4 mm, ilgis 24 cm, psl. 54"]
["2.25.","Biopsinės žnyplės",2,"vnt.",351.6,{"$f":"IF(ISBLANK(E266),\"\", PRODUCT(C266,E266))","v":703.2},"GO 280-20"]
["2.25.1.","Baby-tischler tipo, ilgis 20±1 cm",null,null,null,null,null,"Baby-tischler tipo, ilgis 20 cm, psl. 55"]
["2.26.","Biopsinės žnyplės",2,"vnt.",240.6,{"$f":"IF(ISBLANK(E268),\"\", PRODUCT(C268,E268))","v":481.2},"GO 290-21"]
["2.26.1.","Berger tipo, diam. 5±1 mm, ilgis 20±1 cm",null,null,null,null,null,"Berger tipo, diam. 5 mm, ilgis 21 cm, psl. 55"]
["2.27.","Siurbimo kiurečių rinkinys",4,"vnt.",79.599999999999994,{"$f":"IF(ISBLANK(E270),\"\", PRODUCT(C270,E270))","v":318.39999999999998},"GK 550-04"]
["2.27.1.","Siurbimo kiurečių rinkinys Ilgis 20±1 cm; diametras 4±1 mm",null,null,null,null,null,"Siurbimo kiurečių rinkinys Ilgis 20 cm; diametras 4 mm, psl. 56"]
["2.28.","Siurbimo kiurečių rinkinys",4,"vnt.",79.599999999999994,{"$f":"IF(ISBLANK(E272),\"\", PRODUCT(C272,E272))","v":318.39999999999998},"GK 550-06"]
["2.28.1.","Siurbimo kiurečių rinkinys Ilgis 20±1 cm; diametras 6±1 mm",null,null,null,null,null,"Siurbimo kiurečių rinkinys Ilgis 20 cm; diametras 6 mm, psl. 56"]
["2.29.","Siurbimo kiurečių rinkinys",4,"vnt.",86.2,{"$f":"IF(ISBLANK(E274),\"\", PRODUCT(C274,E274))","v":344.8},"GK 550-08"]
["2.29.1.","Siurbimo kiurečių rinkinys Ilgis 20±1 cm; diametras 8±0,5 mm",null,null,null,null,null,"Siurbimo kiurečių rinkinys Ilgis 20 cm; diametras 8 mm, psl. 56"]
["2.30.","Siurbimo kiurečių rinkinys",6,"vnt.",86.2,{"$f":"IF(ISBLANK(E276),\"\", PRODUCT(C276,E276))","v":517.20000000000005},"GK 550-10"]
["2.30.1.","Siurbimo kiurečių rinkinys Ilgis 20±1 cm; diametras 10±1 mm",null,null,null,null,null,"Siurbimo kiurečių rinkinys Ilgis 20 cm; diametras 10 mm, psl. 56"]
["2.31.","Siurbimo kiurečių rinkinys",4,"vnt.",90.3,{"$f":"IF(ISBLANK(E278),\"\", PRODUCT(C278,E278))","v":361.2},"GK 550-12"]
["2.31.1.","Siurbimo kiurečių rinkinys Ilgis 20±1 cm; diametras 12±1 mm",null,null,null,null,null,"Siurbimo kiurečių rinkinys Ilgis 20 cm; diametras 12 mm, psl. 56"]
["2.32.","Siurbimo kiurečių rinkinys",4,"vnt.",90.3,{"$f":"IF(ISBLANK(E280),\"\", PRODUCT(C280,E280))","v":361.2},"GK 550-14"]
["2.32.1.","Siurbimo kiurečių rinkinys Ilgis 20±1 cm; diametras 14±1 mm",null,null,null,null,null,"Siurbimo kiurečių rinkinys Ilgis 20 cm; diametras 14 mm, psl. 56"]
["2.33.","Siurbimo kiuretės žarnos pajungimo jungtis",10,"vnt.",40.6,{"$f":"IF(ISBLANK(E282),\"\", PRODUCT(C282,E282))","v":406},"GK 551-01"]
["2.33.1.","Siurbimo kiuretės žarnos pajungimo jungtis",null,null,null,null,null,"Siurbimo kiuretės žarnos pajungimo jungtis, psl. 56"]
[null,null,null,null,"Suma be PVM",{"$f":"IF((COUNT(C218:C283)<>COUNT(F218:F283)),\"\", SUM(F218:F283))","v":19026.200000000004},{"$f":"IF((COUNT(C218:C283)<>COUNT(F218:F283)),\"Neužpildytos visų objektų kainos\", \"\")","v":""}]
[null,null,null,null,"PVM suma",{"$f":"ROUND(F284*0.21,2)","v":3995.5}]
[null,null,null,null,"Suma su PVM",{"$f":"IF(ISBLANK(F285), \"\", SUM(F284:F285))","v":23021.700000000004}]
[]
[]
[]
["3. DALIS","INSTRUMENTAI IR RINKINIAI"]
[]
["Tiekėjo pasiūlymas:"]
["Nr.","Pavadinimas","Maksimalus kiekis","Mato vienetas","Vieneto įkainis be PVM, Eur","Suma be PVM, Eur","Siūlomos prekės modelis ir modelio modifikacija (jei taikoma)","Siūlomų parametrų reikšmės ir pridedamo dokumento puslapis patvirtinantis siūlomo parametro reikšmę"]
["3.","Instrumentai ir rinkiniai"]
["3.1.","Žirklės",4,"vnt.",28.1,{"$f":"IF(ISBLANK(E295),\"\", PRODUCT(C295,E295))","v":112.4},"AA 953-11"]
["3.1.1.","Stevens tipo, lenktos, distalinio galo plotis 1,0±1 mm, ašmenys su smulkiais dantukas, ilgis 11±1 cm, rankena su spalvos žymėjimu",null,null,null,null,null,"Stevens tipo, lenktos, distalinio galo plotis 1,2 mm, \našmenys su smulkiais dantukas, ilgis 11 cm, \nrankena su spalvos (juodos) žymėjimu, psl. 57, 58"]
["3.2.","Žirklės",4,"vnt.",27.8,{"$f":"IF(ISBLANK(E297),\"\", PRODUCT(C297,E297))","v":111.2},"AA 952-11"]
["3.2.1.","Stevens tipo, tiesios, distalinio galo plotis 1,0±1 mm, ašmenys su smulkiais dantukas, ilgis 11±1 cm, rankena su spalvos žymėjimu",null,null,null,null,null,"Stevens tipo, tiesios, distalinio galo plotis 1,2 mm, \našmenys su smulkiais dantukas, ilgis 11 cm, \nrankena su spalvos (juodos) žymėjimu, psl. 57, 58"]
["3.3.","Žirklės",4,"vnt.",25.3,{"$f":"IF(ISBLANK(E299),\"\", PRODUCT(C299,E299))","v":101.2},"AA 915-14"]
["3.3.1.","Jameson tipo, lenktos, ašmenys su smulkiais dantukas, ilgis 14,5±1 cm, rankena su spalvos žymėjimu",null,null,null,null,null,"Jameson tipo, lenktos, ašmenys su smulkiais dantukas, \nilgis 14,5 cm, rankena su spalvos (Juodos) žymėjimu, psl. 57, 58"]
["3.4.","Žirklės",4,"vnt.",27.7,{"$f":"IF(ISBLANK(E301),\"\", PRODUCT(C301,E301))","v":110.8},"AA 950-11"]
["3.4.1.","Stevens tipo, tiesios, distalinio galo plotis 1,2±0,1 mm, ašmenys su smulkiais dantukas, ilgis 11±1 cm, rankena su spalvos žymėjimu",null,null,null,null,null,"Stevens tipo, tiesios, distalinio galo plotis 1,2 mm, \našmenys su smulkiais dantukas, ilgis 11 cm, \nrankena su spalvos (Juodos) žymėjimu, psl. 57, 58"]
["3.5.","Žirklės",4,"vnt.",28.1,{"$f":"IF(ISBLANK(E303),\"\", PRODUCT(C303,E303))","v":112.4},"AA 951-11"]
["3.5.1.","Stevens tipo, lenktos, distalinio galo plotis 1,2±0,1 mm, ašmenys su smulkiais dantukas, ilgis 11±1 cm, rankena su spalvos žymėjimu",null,null,null,null,null,"Stevens tipo, lenktos, distalinio galo plotis 1,2 mm, \našmenys su smulkiais dantukas, ilgis 11 cm, \nrankena su spalvos (Juodos) žymėjimu, psl. 57, 58"]
["3.6.","Chirurginis pincetas",8,"vnt.",22.8,{"$f":"IF(ISBLANK(E305),\"\", PRODUCT(C305,E305))","v":182.4},"AE 536-12"]
["3.6.1.","Adson-brown tipo, tiesus, 9x9 danteliai, ilgis 12±1 cm",null,null,null,null,null,"Adson-brown tipo, tiesus, 9x9 danteliai, ilgis 12 cm, psl. 59"]
["3.7.","Atraumatinis pincetas",10,"vnt.",316.5,{"$f":"IF(ISBLANK(E307),\"\", PRODUCT(C307,E307))","v":3165},"AG 700-15-04"]
["3.7.1.","De backey tipo, tiesus, titaninis, distalinio galo plotis 2±0,1 mm, ilgis 15±1 cm",null,null,null,null,null,"De backey tipo, tiesus, titaninis, distalinio galo plotis 2 mm,\n ilgis 15 cm, psl. 60"]
["3.8.","Adatos ištraukimo pincetas",10,"vnt.",124.2,{"$f":"IF(ISBLANK(E309),\"\", PRODUCT(C309,E309))","v":1242},"AH 616-15"]
["3.8.1.","De backey tipo, tiesus, 6x12 danteliai, volframo karbido distalinis galas, distalinio galo plotis 2±0,1 mm, ilgis 15±1 cm",null,null,null,null,null,"De backey tipo, tiesus, 6x12 danteliai, volframo karbido distalinis galas \n(Gold Grip serija), distalinio galo plotis 2 mm, ilgis 15 cm, psl. 61, 62"]
["3.9.","Hemostatinis spaustukas",10,"vnt.",13.5,{"$f":"IF(ISBLANK(E311),\"\", PRODUCT(C311,E311))","v":135},"AI 101-12"]
["3.9.1.","Halstead-Mosquito tipo, lenktas, ilgis 12,5±1 cm",null,null,null,null,null,"Halstead-Mosquito tipo, lenktas, ilgis 12,5 cm, psl. 63"]
["3.10.","Hemostatinis spaustukas",10,"vnt.",14.6,{"$f":"IF(ISBLANK(E313),\"\", PRODUCT(C313,E313))","v":146},"AI 101-14"]
["3.10.1.","Halstead-Mosquito tipo, lenktas, ilgis 14±1 cm",null,null,null,null,null,"Halstead-Mosquito tipo, lenktas, ilgis 14 cm, psl. 63"]
["3.11.","Hemostatinis spaustukas",10,"vnt.",18,{"$f":"IF(ISBLANK(E315),\"\", PRODUCT(C315,E315))","v":180},"AI 097-12"]
["3.11.1.","Micro-Mosquito tipo, lenktas, ilgis, 1x2 dantukai, ilgis 12,5±1 cm",null,null,null,null,null,"Micro-Mosquito tipo, lenktas, ilgis, 1x2 dantukai, ilgis 12 cm, psl. 63"]
["3.12.","Trachėjos kablys",2,"vnt.",20.2,{"$f":"IF(ISBLANK(E317),\"\", PRODUCT(C317,E317))","v":40.4},"HA 240-16"]
["3.12.1.","Iterson tipo, bukas, ilgis, 1 kablys, ilgis 16±1 cm",null,null,null,null,null,"Iterson tipo, bukas, ilgis, 1 kablys, ilgis 16 cm, psl. 64"]
["3.13.","Disektorius",4,"vnt.",28.2,{"$f":"IF(ISBLANK(E319),\"\", PRODUCT(C319,E319))","v":112.8},"HD 171-22"]
["3.13.1.","Hurd tipo, ilgis 22,5±1 cm",null,null,null,null,null,"Hurd tipo, ilgis 22,5 cm, psl. 65"]
["3.14.","Kiuretė",4,"vnt.",55.6,{"$f":"IF(ISBLANK(E321),\"\", PRODUCT(C321,E321))","v":222.4},"HD 561-02"]
["3.14.1.","Barnhill tipo, dydis nr. 1, ilgis 22±1 cm",null,null,null,null,null,"Barnhill tipo, dydis nr. 1, ilgis 22 cm, psl. 66"]
["3.15.","Kiuretė",4,"vnt.",55.6,{"$f":"IF(ISBLANK(E323),\"\", PRODUCT(C323,E323))","v":222.4},"HD 561-03"]
["3.15.1.","Barnhill tipo, dydis nr. 2, ilgis 22±1 cm",null,null,null,null,null,"Barnhill tipo, dydis nr. 2, ilgis 22 cm, psl. 66"]
["3.16.","Tonzilių žnyplės",4,"vnt.",35.5,{"$f":"IF(ISBLANK(E325),\"\", PRODUCT(C325,E325))","v":142},"HD 461-19"]
["3.16.1.","Colver tipo, ilgis 19±1 cm",null,null,null,null,null,"Colver tipo, ilgis 19 cm, psl. 67"]
["3.17.","Siurbimo vamzdelis",4,"vnt.",29.7,{"$f":"IF(ISBLANK(E327),\"\", PRODUCT(C327,E327))","v":118.8},"AT 101-12"]
["3.17.1.","Adson tipo, diam. 4±0,1 mm, ilgis 21±1 cm",null,null,null,null,null,"Adson tipo, diam. 4 mm, ilgis 21 cm, psl. 68"]
["3.18.","Siurbimo vamzdelis",4,"vnt.",21.2,{"$f":"IF(ISBLANK(E329),\"\", PRODUCT(C329,E329))","v":84.8},"AT 121-10"]
["3.18.1.","Frazier tipo, diam. 3,3±0,1 mm, ilgis 12,5±1 cm",null,null,null,null,null,"Frazier tipo, diam. 3,3 mm, ilgis 12,5 cm, psl. 69"]
["3.19.","Elevatorius",2,"vnt.",50.3,{"$f":"IF(ISBLANK(E331),\"\", PRODUCT(C331,E331))","v":100.6},"HH 230-22"]
["3.19.1.","Cottle tipo, distalinių galų plotis 4,5/4,5±0,1 mm, ilgis 22,5±1 cm",null,null,null,null,null,"Cottle tipo, distalinių galų plotis 4,5/4,5 mm, ilgis 22,5 cm, psl. 70"]
["3.20.","Elevatorius",2,"vnt.",47.5,{"$f":"IF(ISBLANK(E333),\"\", PRODUCT(C333,E333))","v":95},"HH 220-21"]
["3.20.1.","Masing tipo, ilgis 21 ±1cm",null,null,null,null,null,"Masing tipo, ilgis 21cm, psl. 70"]
["3.21.","Elevatorius",2,"vnt.",66.7,{"$f":"IF(ISBLANK(E335),\"\", PRODUCT(C335,E335))","v":133.4},"HH 986-19"]
["3.21.1.","Feer tipo, su siurbimu, ilgis 19±1 cm",null,null,null,null,null,"Feer tipo, su siurbimu, ilgis 19 cm, psl. 71"]
["3.22.","Siurbimo vamzdelis",4,"vnt.",36,{"$f":"IF(ISBLANK(E337),\"\", PRODUCT(C337,E337))","v":144},"HH 981-30"]
["3.22.1.","Killian tipo, diam. 3,0±0,1 mm, ilgis 15±1 cm",null,null,null,null,null,"Killian tipo, diam. 3,0 mm, ilgis 15 cm, psl. 71"]
["3.23.","Nosies žnyplės",1,"vnt.",383.9,{"$f":"IF(ISBLANK(E339),\"\", PRODUCT(C339,E339))","v":383.9},"HK 378-10"]
["3.23.1.","Henkel-tilley tipo, dysis 6,5±0,65 mm",null,null,null,null,null,"Henkel-tilley tipo, dysis 6,5 mm, psl. 72"]
["3.24.","Nosies žnyplės",1,"vnt.",339,{"$f":"IF(ISBLANK(E341),\"\", PRODUCT(C341,E341))","v":339},"HK 378-35"]
["3.24.1.","Henkel-tilley tipo, dysis 3,5±0,35 mm",null,null,null,null,null,"Henkel-tilley tipo, dysis 3,5 mm, psl. 72"]
["3.25.","Etmoidinės žnyplės",1,"vnt.",235.3,{"$f":"IF(ISBLANK(E343),\"\", PRODUCT(C343,E343))","v":235.3},"HK 400-05"]
["3.25.1.","Hertmann tipo, diam. 5,0±0,5 mm, ilgis 12±1 cm",null,null,null,null,null,"Hertmann tipo, diam. 5,0 mm, ilgis 12 cm, psl. 73"]
["3.26.","Kateteris",2,"vnt.",23.1,{"$f":"IF(ISBLANK(E345),\"\", PRODUCT(C345,E345))","v":46.2},"MH 611-20"]
["3.26.1.","Dydis 20 Ch, ilgis 27±1 cm, vyriškas",null,null,null,null,null,"Dydis 20 Ch, ilgis 27 cm, vyriškas, psl. 74"]
["3.27.","Kateteris",2,"vnt.",23.1,{"$f":"IF(ISBLANK(E347),\"\", PRODUCT(C347,E347))","v":46.2},"MH 611-22"]
["3.27.1.","Dydis 22 Ch, ilgis 27±1 cm, vyriškas",null,null,null,null,null,"Dydis 22 Ch, ilgis 27 cm, vyriškas, psl. 74"]
["3.28.","Kateteris",2,"vnt.",23.1,{"$f":"IF(ISBLANK(E349),\"\", PRODUCT(C349,E349))","v":46.2},"MH 611-24"]
["3.28.1.","Dydis 24 Ch, ilgis 27±1 cm, vyriškas",null,null,null,null,null,"Dydis 24 Ch, ilgis 27 cm, vyriškas, psl. 74"]
["3.29.","Kataterio pravedėjas",2,"vnt.",13.1,{"$f":"IF(ISBLANK(E351),\"\", PRODUCT(C351,E351))","v":26.2},"MH 620-46"]
["3.29.1.","Guyon tipo, ilgis 46±1 cm, vyriškas",null,null,null,null,null,"Guyon tipo, ilgis 46 cm, vyriškas, psl. 74"]
["3.30.","Hemostatinis ir disekcinis spaustukas",4,"vnt.",49.6,{"$f":"IF(ISBLANK(E353),\"\", PRODUCT(C353,E353))","v":198.4},"AI 465-28"]
["3.30.1.","Kantrowitz tipo, ilgis 28±1 cm",null,null,null,null,null,"Kantrowitz tipo, ilgis 28 cm, psl. 75"]
["3.31.","Hemostatinis ir disekcinis spaustukas",4,"vnt.",119.7,{"$f":"IF(ISBLANK(E355),\"\", PRODUCT(C355,E355))","v":478.8},"AI 475-24"]
["3.31.1.","Mixter tipo, ilgis 24±1 cm",null,null,null,null,null,"Mixter tipo, ilgis 24 cm, psl. 76"]
["3.32.","Latakų spaustukas",4,"vnt.",39.5,{"$f":"IF(ISBLANK(E357),\"\", PRODUCT(C357,E357))","v":158},"AI 595-21"]
["3.32.1.","Desjardins tipo, ilgis 21±1 cm",null,null,null,null,null,"Desjardins tipo, ilgis 21 cm, psl. 77"]
["3.33.","Reverdin tipo adata",10,"vnt.",39.9,{"$f":"IF(ISBLANK(E359),\"\", PRODUCT(C359,E359))","v":399},"AN 930-02"]
["3.33.1.","0-15 laipsnių, puslankiu lenktu duriamuoju galu, ilgis 22±1cm",null,null,null,null,null,"15 laipsnių, puslankiu lenktu duriamuoju galu,\n ilgis 21cm, Psl. 78"]
[null,null,null,null,"Suma be PVM",{"$f":"IF((COUNT(C295:C360)<>COUNT(F295:F360)),\"\", SUM(F295:F360))","v":9372.1999999999971},{"$f":"IF((COUNT(C295:C360)<>COUNT(F295:F360)),\"Neužpildytos visų objektų kainos\", \"\")","v":""}]
[null,null,null,null,"PVM suma",{"$f":"ROUND(F361*0.21,2)","v":1968.16}]
[null,null,null,null,"Suma su PVM",{"$f":"IF(ISBLANK(F362), \"\", SUM(F361:F362))","v":11340.359999999997}]
[]
[]
[]
["4. DALIS","ŽAIZDŲ RETRAKTORIŲ SISTEMA"]
[]
["Tiekėjo pasiūlymas:"]
["Nr.","Pavadinimas","Maksimalus kiekis","Mato vienetas","Vieneto įkainis be PVM, Eur","Suma be PVM, Eur","Siūlomos prekės modelis ir modelio modifikacija (jei taikoma)","Siūlomų parametrų reikšmės ir pridedamo dokumento puslapis patvirtinantis siūlomo parametro reikšmę"]
["4.","Žaizdų retraktorių sistema"]
["4.1.","Žaizdų retraktorių sistema",2,"vnt.",5700,{"$f":"IF(ISBLANK(E372),\"\", PRODUCT(C372,E372))","v":11400},"16-500-00"]
["4.1.1.","CODMAN tipo skirta pilvo chirurginėms operacijoms, pagerinant prieigą prie pilvo organų (būtina)",null,null,null,null,null,"CODMAN tipo lygiavertis skirta pilvo chirurginėms operacijoms, pagerinant prieigą prie pilvo organų psl. 79"]
["4.1.2.","Žaizdų retraktorių sistema tvirtinama prie visų operacinių stalų, kuriuose yra stačiakampio formos šoniniai priedų bėgeliai (būtina)",null,null,null,null,null,"Žaizdų retraktorių sistema tvirtinama prie visų operacinių stalų,\n kuriuose yra standartinis stačiakampio formos šoniniai priedų bėgeliai, psl. 80"]
["4.1.3.","Žaizdų retraktorių sistemos pagrindinis laikiklis fiksuojamas prie operacinio stalo priedų bėgelių. Žaizdų retraktoriaus pagrindinio laikiklio fiksavimo spaustuke, diametras 25±1 mm",null,null,null,null,null,"Žaizdų retraktorių sistemos pagrindinis laikiklis fiksuojamas\n prie operacinio stalo priedų bėgelių. Žaizdų retraktoriaus \npagrindinio laikiklio fiksavimo spaustuke, diametras 25 mm, Psl. 80"]
["4.1.4.","Fiksatorius prie laikiklio skirtas laikančioms svirtims, savo konstrukcija užtikrinantis laikančių svirčių erdvinį reguliavimą, idealiam svirčių pozicionavimui visose situacijose; dydis 2x25±2mm; komplekte 1 vnt",null,null,null,null,null,"Fiksatorius prie laikiklio skirtas laikančioms svirtims, savo konstrukcija\nužtikrinantis laikančių svirčių erdvinį reguliavimą, idealiam svirčių\n pozicionavimui visose situacijose; dydis 2x25mm;\n komplekte 1 vnt, Psl. 80"]
["4.1.5.","Kompeltuojama su: Pagrindinis laikiklis prie stalo, komplekte 1 vnt; Fiksatorius prie laikiklio, komplekte 1 vnt; Horizontalus strypas, komplekte 1 vnt; Rotuojamas/lankstomas horizontalus strypas, komplekte 1 vnt; Ilgintuvas, komplekte 1 vnt; Standartinis fiksavimo spaustukas, komplekte 1 vnt; Pakėlimo fiksavimo spaustukai, komplekte 1 vnt; Laikymo žiedas (ne mažiau 2 vnt.);  Žaizdos retraktoriai (skirtingų dydžių) (ne mažiau 12 vnt.",null,null,null,null,null,"Kompeltuojama su:\n- Pagrindinis laikiklis prie stalo, komplekte 1 vnt. (16-501-1);\n- Fiksatorius prie laikiklio, komplekte 1 vnt. (16-501-02);\n- Horizontalus strypas, komplekte 1 vnt. (16-501-03); \n- Rotuojamas/lankstomas horizontalus strypas, komplekte 1 vnt. (16-501-04);\n- Ilgintuvas, komplekte 1 vnt. (16-501-05);\n- Standartinis fiksavimo spaustukas, komplekte 1 vnt (16-501-06);\n- Pakėlimo fiksavimo spaustukai, komplekte 1 vnt (16-501-07);\n- Laikymo žiedas (ne mažiau 2 vnt.) (16-502-02 ir 16-505-02); \n- Žaizdos retraktoriai (skirtingų dydžių) (ne mažiau 12 vnt.), žr. pozicijas 4.9...4.18)\nPsl. 79-83"]
["4.2.","Horizontalus strypas",1,"vnt.",484.59,{"$f":"IF(ISBLANK(E378),\"\", PRODUCT(C378,E378))","v":484.59},"16-501-03"]
["4.2.1.","Diametras 25±2 mm; Ilgis 36±1,5  cm",null,null,null,null,null,"Diametras 25 mm; Ilgis 36,5  cm, Psl. 79, 80"]
["4.3.","Horizontalus strypas",1,"vnt.",813.3,{"$f":"IF(ISBLANK(E380),\"\", PRODUCT(C380,E380))","v":813.3},"16-501-04"]
["4.3.1.","Lankstomas, rotuojamas 360°",null,null,null,null,null,"Lankstomas, rotuojamas 360°, psl. 79, 80"]
["4.4.","Ilgintuvas",1,"vnt.",90.48,{"$f":"IF(ISBLANK(E382),\"\", PRODUCT(C382,E382))","v":90.48},"16-501-05"]
["4.4.1.","Ilgis ≥ 300 mm",null,null,null,null,null,"Ilgis 305 mm, Psl. 80"]
["4.5.","Standartinis fiksavimo spaustukas",1,"vnt.",179.8,{"$f":"IF(ISBLANK(E384),\"\", PRODUCT(C384,E384))","v":179.8},"16-501-06"]
["4.5.1.","Dydis 4±0,5 cm; 2 vnt.- komplektas;",null,null,null,null,null,"Dydis 4 cm; 2 vnt.- komplektas; psl. 79, 80"]
["4.6.","Pakėlimo fiksavimo spaustuka",1,"vnt.",1435.5,{"$f":"IF(ISBLANK(E386),\"\", PRODUCT(C386,E386))","v":1435.5},"16-501-07"]
["4.6.1.","Dydis 4±0,5 cm; 6 vnt. - komplektas;",null,null,null,null,null,"Dydis 4 cm; 6 vnt. - komplektas; psl. 79, 80"]
["4.7.","Ovalus laikymo žiedas",1,"vnt.",212.13,{"$f":"IF(ISBLANK(E388),\"\", PRODUCT(C388,E388))","v":212.13},"16-502-02"]
["4.7.1.","Išmatavimai 265x370±100 mm",null,null,null,null,null,"Išmatavimai 267x368 mm, 80"]
["4.8.","Segmentinis ovalus laikymo žiedas",1,"vnt.",597.98,{"$f":"IF(ISBLANK(E390),\"\", PRODUCT(C390,E390))","v":597.98},"16-505-02"]
["4.8.1.","Išmatavimai 265x495±50 mm; 1 vnt.",null,null,null,null,null,"Išmatavimai 265x495 mm; 1 vnt., psl. 81"]
["4.9.","Retraktorius",1,"vnt.",93.52,{"$f":"IF(ISBLANK(E392),\"\", PRODUCT(C392,E392))","v":93.52},"16-510-01"]
["4.9.1.","Balfour tipo, Išmatavimai 67x76±10 mm",null,null,null,null,null,"Balfour tipo, Išmatavimai 67x76 mm, 82"]
["4.10.","Retraktorius",1,"vnt.",93.52,{"$f":"IF(ISBLANK(E394),\"\", PRODUCT(C394,E394))","v":93.52},"16-512-01"]
["4.10.1.","Gelp tipo su dantuku",null,null,null,null,null,"Gelp tipo su dantuku, psl. 82"]
["4.11.","Retraktorius",1,"vnt.",145.29,{"$f":"IF(ISBLANK(E396),\"\", PRODUCT(C396,E396))","v":145.29},"16-513-01"]
["4.11.1.","Harrington tipo, išmatavimai 63x143±15 mm",null,null,null,null,null,"Harrington tipo, išmatavimai 63x143 mm, psl. 82"]
["4.12.","Retraktorius",2,"vnt.",89.9,{"$f":"IF(ISBLANK(E398),\"\", PRODUCT(C398,E398))","v":179.8},"16-515-04"]
["4.12.1.","Kelly tipo, išmatavimai 51x76±5 mm",null,null,null,null,null,"Kelly tipo, išmatavimai 51x76 mm, psl. 82"]
["4.13.","Retraktorius",1,"vnt.",89.9,{"$f":"IF(ISBLANK(E400),\"\", PRODUCT(C400,E400))","v":89.9},"16-515-05"]
["4.13.1.","Kelly tipo. Išmatavimai 51x101±10 mm",null,null,null,null,null,"Kelly tipo. Išmatavimai 51x101 mm, psl. 82"]
["4.14.","Retraktorius",1,"vnt.",90.48,{"$f":"IF(ISBLANK(E402),\"\", PRODUCT(C402,E402))","v":90.48},"16-515-06"]
["4.14.1.","Kelly tipo. Išmatavimai 51x127±10 mm",null,null,null,null,null,"Kelly tipo. Išmatavimai 51x127 mm, psl. 82"]
["4.15.","Retraktorius",1,"vnt.",92.22,{"$f":"IF(ISBLANK(E404),\"\", PRODUCT(C404,E404))","v":92.22},"16-515-07"]
["4.15.1.","Kelly tipo. Išmatavimai 51x152±5 mm",null,null,null,null,null,"Kelly tipo. Išmatavimai 51x152 mm, psl. 82"]
["4.16.","Lankstomas retraktorius",1,"vnt.",73.510000000000005,{"$f":"IF(ISBLANK(E406),\"\", PRODUCT(C406,E406))","v":73.510000000000005},"16-516-01"]
["4.16.1.","Išmatavimai 38x152±10 mm.",null,null,null,null,null,"Išmatavimai 38x152 mm. psl. 83"]
["4.17.","Lankstomas retraktorius",2,"vnt.",75.69,{"$f":"IF(ISBLANK(E408),\"\", PRODUCT(C408,E408))","v":151.38},"16-516-02"]
["4.17.1.","Išmatavimai 51x152±10 mm.",null,null,null,null,null,"Išmatavimai 51x152 mm. psl. 83"]
["4.18.","Lankstomas retraktorius",1,"vnt.",77.14,{"$f":"IF(ISBLANK(E410),\"\", PRODUCT(C410,E410))","v":77.14},"16-516-03"]
["4.18.1.","Išmatavimai 76x152±10 mm.",null,null,null,null,null,"Išmatavimai 76x152 mm. psl. 83"]
[null,null,null,null,"Suma be PVM",{"$f":"IF((COUNT(C372:C411)<>COUNT(F372:F411)),\"\", SUM(F372:F411))","v":16300.539999999995},{"$f":"IF((COUNT(C372:C411)<>COUNT(F372:F411)),\"Neužpildytos visų objektų kainos\", \"\")","v":""}]
[null,null,null,null,"PVM suma",3423.11]
[null,null,null,null,"Suma su PVM",{"$f":"IF(ISBLANK(F413), \"\", SUM(F412:F413))","v":19723.649999999994}]
[]
[]
[]
["5. DALIS","FURLOW TIPO LINIUOTĖ"]
[]
["Tiekėjo pasiūlymas:"]
["Nr.","Pavadinimas","Maksimalus kiekis","Mato vienetas","Vieneto įkainis be PVM, Eur","Suma be PVM, Eur","Siūlomos prekės modelis ir modelio modifikacija (jei taikoma)","Siūlomų parametrų reikšmės ir pridedamo dokumento puslapis patvirtinantis siūlomo parametro reikšmę"]
["5.","Furlow tipo liniuotė"]
["5.1.","Furlow tipo liniuotė",2,"vnt.",null,{"$f":"IF(ISBLANK(E423),\"\", PRODUCT(C423,E423))","v":""}]
["5.1.1.","Furlow tipo liniuotė skirta reikiamo vyro varpos implanto dydžiui išmatuoti, graduota ne mažiau 16 padalų/cm"]
["5.2.","Retraktoriaus rinkinys su kabliukais skirtas vyro varpos operacijoms",5,"vnt.",null,{"$f":"IF(ISBLANK(E425),\"\", PRODUCT(C425,E425))","v":""}]
[null,null,null,null,"Suma be PVM",{"$f":"IF((COUNT(C423:C425)<>COUNT(F423:F425)),\"\", SUM(F423:F425))","v":""},{"$f":"IF((COUNT(C423:C425)<>COUNT(F423:F425)),\"Neužpildytos visų objektų kainos\", \"\")","v":"Neužpildytos visų objektų kainos"}]
[null,null,null,null,"PVM suma"]
[null,null,null,null,"Suma su PVM",{"$f":"IF(ISBLANK(F427), \"\", SUM(F426:F427))","v":""}]
[]
[]
[]
["6. DALIS","RINKINYS FISTULEKTOMIJAI"]
[]
["Tiekėjo pasiūlymas:"]
["Nr.","Pavadinimas","Maksimalus kiekis","Mato vienetas","Vieneto įkainis be PVM, Eur","Suma be PVM, Eur","Siūlomos prekės modelis ir modelio modifikacija (jei taikoma)","Siūlomų parametrų reikšmės ir pridedamo dokumento puslapis patvirtinantis siūlomo parametro reikšmę"]
["6.","Rinkinys fistulektomijai"]
["6.1.","Rinkinys fistulektomijai",3,"vnt.",null,{"$f":"IF(ISBLANK(E437),\"\", PRODUCT(C437,E437))","v":""}]
["6.1.1.","Retraktoriaus rinkinys su kabliukais skirtas vyro varpos operacijoms, DVIEJŲ, NEPILNO ŽIEDO, SKIRTINGO DIAMETRO , 22X11±3 CM"]
["6.1.2.","Rinkinys fistulektomijai, kompkekte: optika, 8°, su kampiniu okuliaru, išorinis skersmuo 3±0,5 x 4,4±0,5 mm, darbinis ilgis 18±5 cm, autoklavuojama; tiesus 2,5±0,5mm skersmens darbinis kanalas."]
["6.1.3.","Krepšys sterilizavimui"]
["6.1.4.","Elektrodas koaguliacijai, monopolinis, fistulektomijai, 7 Fr., ilgis 53±5 cm"]
["6.1.5.","Šepetėlis fistulei, komplekte: rankena, išorinė mova, 3,5±0,5mm, 4±0,5 mm, 4,5±0,5 mm skersmens šepetėliai."]
["6.1.6.","Griebiančios žnyplės, rotuojamos, dydis 2±0,1 mm, ilgis 30±2 cm, su jungtimi monopolinei koaguliacijai, abi judančios žiaunos, su Luer tipo priedu valymui, su plastikine rankena be užrakto."]
["6.1.7.","Fibrooptinis šviesolaidis, su tiesia jungtimi, skersmuo 3±0,5 mm, ilgis ≥230 cm"]
["6.1.8.","Monopolinis aukšto dažnio laidas, su 5±1 mm jungtimi, ilgis ≥300 cm"]
[null,null,null,null,"Suma be PVM",{"$f":"IF((COUNT(C437:C445)<>COUNT(F437:F445)),\"\", SUM(F437:F445))","v":""},{"$f":"IF((COUNT(C437:C445)<>COUNT(F437:F445)),\"Neužpildytos visų objektų kainos\", \"\")","v":"Neužpildytos visų objektų kainos"}]
[null,null,null,null,"PVM suma"]
[null,null,null,null,"Suma su PVM",{"$f":"IF(ISBLANK(F447), \"\", SUM(F446:F447))","v":""}]
[]
[]
[]
["7. DALIS","METALINIS KREPŠYS CHIRURGINIŲ INSTRUMENTŲ STERILIZAVIMUI"]
[]
["Tiekėjo pasiūlymas:"]
["Nr.","Pavadinimas","Maksimalus kiekis","Mato vienetas","Vieneto įkainis be PVM, Eur","Suma be PVM, Eur","Siūlomos prekės modelis ir modelio modifikacija (jei taikoma)","Siūlomų parametrų reikšmės ir pridedamo dokumento puslapis patvirtinantis siūlomo parametro reikšmę"]
["7.","Metalinis krepšys chirurginių instrumentų sterilizavimui"]
["7.1.","Perforuotas metalinis krepšys",10,"vnt.",117,{"$f":"IF(ISBLANK(E457),\"\", PRODUCT(C457,E457))","v":1170},"55-190-07"]
["7.1.1.","Stačiakampio formos",null,null,null,null,null,"Stačiakampio formos, psl. 84"]
["7.1.2.","Matmenys (ilgis x plotis x aukštis) : 500±50 mm x 250±10 mm x 60±10 mm",null,null,null,null,null,"Matmenys (ilgis x plotis x aukštis):\n485 mm x 255 mm x 70 mm, psl. 84"]
[null,null,null,null,"Suma be PVM",{"$f":"IF((COUNT(C457:C459)<>COUNT(F457:F459)),\"\", SUM(F457:F459))","v":1170},{"$f":"IF((COUNT(C457:C459)<>COUNT(F457:F459)),\"Neužpildytos visų objektų kainos\", \"\")","v":""}]
[null,null,null,null,"PVM suma",245.7]
[null,null,null,null,"Suma su PVM",{"$f":"IF(ISBLANK(F461), \"\", SUM(F460:F461))","v":1415.7}]
[]
[]
[]
["8. DALIS","TEP TIPO KIRKŠNIES IŠVARŽŲ OPERACIJŲ VOŽTUVŲ IR OBRURATORIŲ RINKINYS"]
[]
["Tiekėjo pasiūlymas:"]
["Nr.","Pavadinimas","Maksimalus kiekis","Mato vienetas","Vieneto įkainis be PVM, Eur","Suma be PVM, Eur","Siūlomos prekės modelis ir modelio modifikacija (jei taikoma)","Siūlomų parametrų reikšmės ir pridedamo dokumento puslapis patvirtinantis siūlomo parametro reikšmę"]
["8.","TEP tipo kirkšnies išvaržų operacijų vožtuvų ir obruratorių rinkinys"]
["8.1.","Automatinis vožtuvas",2,"vnt.",null,{"$f":"IF(ISBLANK(E471),\"\", PRODUCT(C471,E471))","v":""}]
["8.1.1.","Su insufliacijos kanalu"]
["8.1.2.","Daugkartinio naudojimo"]
["8.1.3.","Galimybė valdyti  ir rankiniu būdu"]
["8.1.4.","Tinkamas naudoti su išplėtimo ir fiksavimo balionais"]
["8.1.5.","Prijungtas su balionu turi sudaryti vientisą sistemą"]
["8.1.6.","Diametras 10 ± 1 mm"]
["8.2.","Obturatorius",1,"vnt.",null,{"$f":"IF(ISBLANK(E478),\"\", PRODUCT(C478,E478))","v":""}]
["8.2.1.","Daugkartinio naudojimo"]
["8.2.2.","Tinkamas naudoti su išplėtimo balionu"]
["8.2.3.","Prijungtas su balionu turi sudaryti vientisą sistemą"]
["8.2.4.","Diametras 10 ± 1 mm"]
["8.3.","Obturatorius",1,"vnt.",null,{"$f":"IF(ISBLANK(E483),\"\", PRODUCT(C483,E483))","v":""}]
["8.3.1.","Daugkartinio naudojimo"]
["8.3.2.","Tinkamas naudoti su fiksavimo balionu"]
["8.3.3.","Prijungtas su balionu turi sudaryti vientisą sistemą"]
["8.3.4.","Diametras 10 ± 1 mm"]
[null,null,null,null,"Suma be PVM",{"$f":"IF((COUNT(C471:C487)<>COUNT(F471:F487)),\"\", SUM(F471:F487))","v":""},{"$f":"IF((COUNT(C471:C487)<>COUNT(F471:F487)),\"Neužpildytos visų objektų kainos\", \"\")","v":"Neužpildytos visų objektų kainos"}]
[null,null,null,null,"PVM suma"]
[null,null,null,null,"Suma su PVM",{"$f":"IF(ISBLANK(F489), \"\", SUM(F488:F489))","v":""}]

{"sheet":"Subtiekėjai ir priedai","index":1,"n_rows":100,"n_cols":11,"rows_kept":100,"cut":false,"hidden":false,"merged":[[23,0,23,1],[22,0,22,1],[21,0,21,1],[20,0,20,1],[19,0,19,1],[28,0,28,1],[27,0,27,1],[26,0,26,1],[25,0,25,1],[24,0,24,1],[23,2,23,4],[22,2,22,4],[21,2,21,4],[20,2,20,4],[19,2,19,4],[28,2,28,4],[27,2,27,4],[26,2,26,4],[25,2,25,4],[24,2,24,4],[23,5,23,7],[22,5,22,7],[21,5,21,7],[20,5,20,7],[19,5,19,7],[28,5,28,7],[27,5,27,7],[26,5,26,7],[25,5,25,7],[24,5,24,7],[23,8,23,9],[22,8,22,9],[21,8,21,9],[20,8,20,9],[19,8,19,9],[28,8,28,9],[27,8,27,9],[26,8,26,9],[25,8,25,9],[24,8,24,9],[16,0,16,10],[18,8,18,9],[18,5,18,7],[18,2,18,4],[18,0,18,1],[13,0,13,1],[12,0,12,1],[11,0,11,1],[10,0,10,1],[13,8,13,9],[12,8,12,9],[11,8,11,9],[10,8,10,9],[4,0,4,1],[5,5,5,7],[5,0,5,1],[9,0,9,1],[13,2,13,4],[12,2,12,4],[11,2,11,4],[10,2,10,4],[9,2,9,4],[13,5,13,7],[12,5,12,7],[11,5,11,7],[10,5,10,7],[9,5,9,7],[1,0,2,10],[30,0,30,9],[14,5,14,7],[8,5,8,7],[7,5,7,7],[6,5,6,7],[14,8,14,9],[8,8,8,9],[7,8,7,9],[6,8,6,9],[14,0,14,1],[8,0,8,1],[7,0,7,1],[6,0,6,1],[14,2,14,4],[8,2,8,4],[7,2,7,4],[9,8,9,9],[6,2,6,4],[5,2,5,4],[5,8,5,9],[4,8,4,9],[4,5,4,7],[4,2,4,4],[32,0,32,9],[34,7,34,9],[34,1,34,6],[45,7,45,9],[42,7,42,9],[37,7,37,9],[36,7,36,9],[35,7,35,9],[44,7,44,9],[43,7,43,9],[41,7,41,9],[40,7,40,9],[39,7,39,9],[38,7,38,9],[45,1,45,6],[44,1,44,6],[47,0,47,9],[52,4,52,9],[50,4,50,9],[52,0,52,3],[50,0,50,3],[38,1,38,6],[37,1,37,6],[36,1,36,6],[35,1,35,6],[43,1,43,6],[42,1,42,6],[41,1,41,6],[40,1,40,6],[39,1,39,6]]}
[]
["Ūkio subjektai (įskaitant kvazisubtiekėjus - fiziniai asmenys, kuriuos ketinama įdarbinti pirkimo laimėjimo atveju), kurių pajėgumais tiekėjas remiasi, kad atitiktų keliamus kvalifikacijos reikalavimus:"]
[]
[]
["Pavadinimas*",null,"Kodas, adresas",null,null,"Perduodami įsipareigojimai",null,null,"Perduodamų įsipareigojimų dalis nuo visos pirkimo sutarties (Eur arba %)",null,"Kval. Reikalavimo Nr."]
["-"]
[]
[]
[]
[]
[]
[]
[]
[]
[]
[]
["Subtiekėjams / subteikėjams / subrangovams numatomos perduoti veiklos (privaloma nurodyti) ir šių ūkio subjektų pavadinimai (jei žinomi):"]
[]
["Pavadinimas",null,"Kodas, adresas",null,null,"Perduodama veikla*",null,null,"Perduodamos veiklos dalis nuo visos pirkimo sutarties (Eur arba %)"]
["-"]
[]
[]
[]
[]
[]
[]
[]
[]
[]
[]
[]
[]
["Kartu su pasiūlymu pateikiami šie dokumentai:"]
[]
["Nr.","Dokumento  pavadinimas",null,null,null,null,null,"Dokumentas yra konfidencialus? Taip/Ne"]
[1,"Jungtinės veiklos kopija (jei taikoma)",null,null,null,null,null,"-"]
[2,"Europos bendrasis viešųjų pirkimų dokumentas",null,null,null,null,null,"Ne"]
[3,"Subtiekimo sutartis, ketinimų protokolas, preliminarios sutartys ar kiti dokumentai, patvirtinantys, kad laimėjus pirkimą tiekėjui bus prieinami kitų ūkio subjektų ištekliai (jei pasitelkiami kvalifikacijos atitikimui)",null,null,null,null,null,"-"]
[4,"Pasiūlymo atitikimą pirkimo sąlygų techninei specifikacijai pagrindžiantys dokumentai",null,null,null,null,null,"Taip"]
[5,"01 Pasiulymas",null,null,null,null,null,"Ne"]
[6,"02 Technine specifikacija",null,null,null,null,null,"Ne"]
[7,"03 Igaliojimas pateikti pasiulyma",null,null,null,null,null,"Ne"]
[8,"04 RC jungtine pazyma",null,null,null,null,null,"Ne"]
[9,"07 - 08 Gamintojo įgaliojimas \n09 - 10 Gamintojo raštas del pavadinimo keitimo\n16 - 17 Gamintojo įgaliojimas ",null,null,null,null,null,"Taip"]
[10,"11 - 12 Gamintojo CE sertifikatas\n18 Gamintojo CE sertifikatas",null,null,null,null,null,"Taip"]
[11,"13 Metalo kokybes sertifikatu paaiskinimas\n14 - 15 Metalo deklaracija",null,null,null,null,null,"Taip"]
[]
["Pasiūlyme nurodyta Prekės kaina, išskyrus jos sudedamąsias dalis, subtiekėjai, taip pat kita informacija, kuri teisės aktų nustatyta tvarka turi būti skelbiama arba kitokiu būdu viešai prieinama visuomenei, nėra laikoma konfidencialia informacija. Konfidencialią informaciją sudaro, visų pirma, komercinė (gamybinė) paslaptis ir konfidencialieji pasiūlymų aspektai. Informacija, kurią viešai skelbti įpareigoja Lietuvos Respublikos įstatymai, negali būti tiekėjo nurodoma kaip konfidenciali, todėl, tiekėjui nurodžius tokią informaciją kaip konfidencialią, perkančioji organizacija turi teisę ją skelbti. Jei tiekėjas nenurodo konfidencialios informacijos, laikoma, kad konfidencialios informacijos tiekėjo pasiūlyme nėra. Vadovaujantis Informacijos viešinimo Centrinėje viešųjų pirkimų informacinėje sistemoje tvarkos aprašu, patvirtintu Viešųjų pirkimų tarnybos direktoriaus 2017 m. birželio 19 d. įsakymu Nr. 1S-91 „Dėl Informacijos viešinimo Centrinėje viešųjų pirkimų informacinėje sistemoje tvarkos aprašo patvirtinimo“, perkančioji organizacija laimėjusio dalyvio pasiūlymą, išskyrus informaciją, kurią tiekėjas nurodė kaip konfidencialią, paskelbs CVP IS."]
[]
[]
["Tiekėjo arba jo įgalioto asmens pareigų pavadinimas:",null,null,null,"Administratore / buhaltere"]
[]
["Pasirašančio asmens vardas ir pavardė:",null,null,null,"Giedre Valiene"]
[]
[]
[]
[]
[]
[]
[]
[]
[]
[]
[]
[]
[]
[]
[]
[]
[]
[]
[]
[]
[]
[]
[]
[]
[]
[]
[]
[]
[]
[]
[]
[]
[]
[]
[]
[]
[]
[]
[]
[]
[]
[]
[]
[]
[]
[]
["6470 2022-04-25 18:24:49"]